Workbook

Sheet 补录后
A1: 2021年航空航天学院博士研究生复试结果及拟录取名单
A2: 序号 | B2: 考生姓名 | C2: 报名号 | D2: 拟录取专业 | E2: 研究方向 | F2: 拟录取导师姓名 | G2: 复试成绩 | J2: 总成绩 | K2: 是否录取 | L2: 拟录取类别 | M2: 奖助学金等级 | N2: 备注
G3: 专业 | H3: 综合 | I3: 外语
A4: 1 | B4: 尹安治 | C4: 1053394771 | D4: (专业学位)机械 | E4: 机械（工程博士专项） | F4: 梁步阁 | G4: 93.4 | H4: 88.0 | I4: 79.0 | J4: 260.0 | K4: 拟录取 | L4: 定向就业 | M4: 不享受奖助学金

Sheet Sheet1
A1: 2020年航空航天学院博士研究生复试结果及拟录取名单
A2: 序号 | B2: 考生姓名 | C2: 考生编号 | D2: 拟录取专业 | E2: 研究方向 | F2: 拟录取导师姓名 | G2: 复试成绩 | J2: 总成绩 | K2: 是否录取 | L2: 拟录取类别 | M2: 奖助学金等级 | N2: 备注
G3: 专业 | H3: 综合 | I3: 外语
A4: 1 | B4: 王泽 | C4: 1053396512 | D4: 材料科学与工程 | E4: 材料物理与化学 | F4: 黄小忠 | G4: =(95+96+93+96+85)/5 -> 93.0 | H4: =(95+95+95+88)/8+92/2 -> 92.6 | I4: =(95+93+80)/3 -> 89.3 | J4: =G4+H4+I4 -> 275.0 | K4: 拟录取 | L4: 非定向 | M4: 享受奖助学金
A5: 2 | B5: 邹杨君 | C5: 1053395275 | D5: 材料科学与工程 | E5: 复合材料 | F5: 黄小忠 | G5: =(90+90+90+96+85)/5 -> 90.2 | H5: =(90+90+93+85)/8+90/2 -> 89.8 | I5: =(95+95+90)/3 -> 93.3 | J5: =G5+H5+I5 -> 273.3 | K5: 不予录取
A6: 3 | B6: 付浩成 | C6: 1053397007 | D6: 材料科学与工程 | E6: 复合材料 | F6: 黄小忠 | G6: =(90+85+85+92+80)/5 -> 86.4 | H6: =(85+85+85+85)/8+85/2 -> 85.0 | I6: =(90+90+70)/3 -> 83.3 | J6: =G6+H6+I6 -> 254.7 | K6: 不予录取
A7: 4 | B7: 曹梦磊 | C7: 1053392877 | D7: (专业学位)机械 | E7: 机械（工程博士专项） | F7: 梁步阁 | G7: =(90+92+95+93+90)/5 -> 92.0 | H7: =(94+90+90+92)/8+90/2 -> 90.8 | I7: =(92+89+95)/3 -> 92.0 | J7: =G7+H7+I7 -> 274.8 | K7: 拟录取 | L7: 定向 | M7: 不享受奖助学金
A8: 5 | B8: 罗俊航 | C8: 1053392836 | D8: (专业学位)机械 | E8: 机械（工程博士专项） | F8: 罗世彬 | G8: =(92+95+90+92+95)/5 -> 92.8 | H8: =(88+92+91+95)/8+92/2 -> 91.8 | I8: =(90+86+85)/3 -> 87.0 | J8: =G8+H8+I8 -> 271.6 | K8: 拟录取 | L8: 定向 | M8: 不享受奖助学金
